bitfinex/quotes_SOLUSD_20250717
["timestamp","ask_amount","ask_price","bid_price","bid_amount"]
[1752770918014,0.75,172.53,172.49,9.41849539]
[1752770918409,0.75,172.53,172.5,9.41849539]
[1752770918636,41.29650537,172.52,172.5,9.41849539]
[1752770918944,35.5,172.52,172.5,9.41849539]
[1752770919166,0.03,172.53,172.51,9.41849539]
[1752770919439,0.03,172.53,172.52,9.41849539]
[1752770919640,35.51,172.53,172.52,9.41849539]
[1752770920221,35.51,172.53,172.49,6.5576]
[1752770920427,35.51,172.53,172.52,9.41849539]
[1752770921043,41.30609343,172.53,172.52,9.41849539]
[1752770921431,41.30609343,172.53,172.51,9.41849539]
[1752770921939,41.30609343,172.53,172.49,7.2476]
[1752770922124,42.02609343,172.53,172.5,9.41849539]
[1752770922524,0.72,172.52,172.49,6.5576]
[1752770922833,0.72,172.52,172.48,35.41849539]
[1752770922834,9.41849539,172.52,172.48,35.41849539]
[1752770923032,5.79710144,172.5,172.47,10.96589539]
[1752770923236,45.57849539,172.49,172.45,41.95579539]
[1752770923413,0.72,172.48,172.45,15.95579539]
[1752770923616,0.72,172.47,172.45,35.41849539]
[1752770923821,35.44,172.46,172.45,35.41849539]
[1752770924031,35.44,172.46,172.45,36.10849539]
[1752770924713,35.44,172.46,172.45,35.41849539]
[1752770925245,41.23844601,172.46,172.45,26.0]
[1752770925444,41.23844601,172.46,172.45,35.41849539]
[1752770925619,35.44,172.46,172.45,35.41849539]
[1752770925956,41.23844601,172.46,172.45,35.41849539]
[1752770926252,41.23844601,172.46,172.45,26.0]
[1752770927141,35.44,172.46,172.45,26.0]
[1752770927442,35.44,172.46,172.45,35.41849539]
[1752770928028,35.44,172.46,172.45,36.10849539]
[1752770928252,0.72,172.51,172.45,36.10849539]
[1752770928419,35.38,172.5,172.49,9.41849539]
[1752770929138,35.38,172.5,172.49,6.7737]
[1752770929448,35.38,172.5,172.49,16.19219539]
[1752770930235,35.38,172.5,172.49,23.54413292]
[1752770931033,0.03,172.53,172.49,23.54413292]
[1752770931230,0.03,172.53,172.52,35.41849539]
[1752770932944,0.03,172.53,172.52,36.10849539]
[1752770933116,0.03,172.53,172.52,41.90492478]
[1752770934566,0.03,172.53,172.52,35.41849539]
[1752770935532,0.03,172.53,172.52,41.21492478]
[1752770935750,0.03,172.53,172.52,41.90492478]
[1752770936926,0.03,172.53,172.52,58.68960875]
[1752770937831,35.28,172.57,172.56,26.0]
[1752770938043,35.28,172.57,172.56,36.07849539]
[1752770938750,35.26,172.6,172.56,41.87358115]
[1752770938939,35.26,172.6,172.59,9.41849539]
[1752770939129,35.97,172.6,172.59,9.41849539]
[1752770939333,35.26,172.6,172.59,9.41849539]
[1752770940341,36.0,172.6,172.56,26.0]
[1752770940538,0.71,172.59,172.53,0.66]
[1752770940753,9.41849539,172.54,172.47,0.57981098]
[1752770941061,9.41849539,172.51,172.45,6.0792]
[1752770941256,9.41849539,172.51,172.47,9.41849539]
[1752770941257,35.24,172.5,172.47,9.41849539]
[1752770941555,0.71,172.49,172.45,32.0792]
[1752770941757,0.71,172.48,172.46,9.41849539]
[1752770941961,0.71,172.5,172.47,9.41849539]
[1752770942256,35.93,172.49,172.46,9.41849539]
[1752770942455,35.93,172.48,172.47,26.0]
[1752770942657,35.93,172.48,172.47,35.41849539]
[1752770942966,35.22,172.48,172.47,35.41849539]
[1752770943127,35.22,172.48,172.47,26.0]
[1752770943329,35.22,172.48,172.47,35.41849539]
[1752770943838,41.01777968,172.48,172.47,9.41849539]
[1752770944384,41.72777968,172.48,172.47,26.0]
[1752770946485,51.14627507,172.48,172.41,9.41849539]
[1752770946630,9.41849539,172.45,172.4,15.44039539]
[1752770946836,5.79945485,172.43,172.4,9.41849539]
[1752770947144,0.71,172.42,172.39,26.0]
[1752770947459,35.89,172.41,172.37,35.41849539]
[1752770947648,0.71,172.4,172.39,26.0]
[1752770948038,0.71,172.4,172.37,9.41849539]
[1752770948243,0.71,172.4,172.39,26.0]
[1752770949465,35.18,172.41,172.39,35.41849539]
[1752770949674,35.18,172.41,172.4,9.41849539]
[1752770949846,40.9801276,172.41,172.4,9.41849539]
[1752770950048,51.10862299,172.41,172.38,0.06]
[1752770950365,0.71,172.4,172.38,0.06]
[1752770950568,40.9801276,172.41,172.38,0.06]
[1752770950869,40.9801276,172.41,172.38,9.47849539]
[1752770951045,9.41849539,172.45,172.4,9.41849539]
[1752770951369,40.93938789,172.44,172.41,9.41849539]
[1752770951569,40.93938789,172.44,172.4,9.41849539]
[1752770951775,40.93938789,172.44,172.39,35.41849539]
[1752770951776,0.71,172.43,172.39,35.41849539]
[1752770952074,9.41849539,172.41,172.38,0.06]
[1752770952245,44.53849539,172.4,172.38,0.06]
[1752770952444,45.24849539,172.4,172.38,0.06]
[1752770952661,0.71,172.39,172.38,0.06]
[1752770953065,6.51080051,172.39,172.38,0.06]
[1752770953275,51.0492959,172.39,172.38,0.06]
[1752770953458,41.63080051,172.39,172.38,0.06]
[1752770953645,51.0492959,172.39,172.38,0.06]
[1752770953845,6.51080051,172.39,172.38,0.06]
[1752770954047,41.61080051,172.39,172.38,0.06]
[1752770954975,51.0292959,172.39,172.38,0.06]
[1752770955484,35.1,172.39,172.38,0.06]
[1752770956446,41.61080051,172.39,172.38,0.06]
[1752770958652,51.0292959,172.39,172.38,0.06]
[1752770959254,40.90080051,172.39,172.38,0.06]
[1752770959456,41.61080051,172.39,172.38,0.06]
[1752770959864,51.0292959,172.39,172.38,0.06]
[1752770961355,0.71,172.42,172.38,9.47849539]
[1752770961562,35.04,172.41,172.38,9.47849539]
[1752770962374,5.80046403,172.4,172.38,9.47849539]
[1752770962562,35.02,172.39,172.38,9.47849539]
[1752770963151,35.02,172.39,172.38,0.06]
[1752770964061,35.02,172.39,172.38,35.47849539]
[1752770964380,35.02,172.39,172.38,36.13849539]
[1752770965078,35.02,172.39,172.38,26.06]
[1752770965262,35.02,172.39,172.38,35.47849539]
[1752770965467,35.02,172.39,172.38,26.06]
[1752770965654,35.02,172.39,172.38,35.47849539]
[1752770966856,35.02,172.39,172.38,26.06]
[1752770967054,35.02,172.39,172.38,35.47849539]
[1752770967257,35.02,172.39,172.38,26.06]
[1752770967455,35.02,172.39,172.38,35.47849539]
[1752770968779,5.79743753,172.49,172.39,1.6492]
[1752770968961,5.79743753,172.49,172.43,26.0]
[1752770969159,34.96,172.48,172.47,9.41849539]
[1752770969378,35.63,172.48,172.46,9.41849539]
[1752770970059,34.96,172.48,172.47,9.41849539]
[1752770970469,34.96,172.48,172.44,0.68]
[1752770970670,34.96,172.48,172.47,9.41849539]
[1752770970878,41.42777365,172.48,172.43,26.0]
[1752770971078,0.67,172.47,172.45,9.41849539]
[1752770971255,0.67,172.46,172.45,9.41849539]
[1752770971678,41.42777365,172.48,172.45,9.41849539]
[1752770971961,41.42777365,172.48,172.43,26.0]
[1752770972159,0.67,172.47,172.45,9.41849539]
[1752770972454,0.67,172.47,172.43,26.0]
[1752770972657,0.67,172.47,172.45,9.41849539]
[1752770972959,0.67,172.47,172.43,26.0]
[1752770973286,0.67,172.47,172.45,9.41849539]
[1752770973476,40.75777365,172.48,172.45,9.41849539]
[1752770973664,34.96,172.48,172.47,9.41849539]
[1752770973867,40.75777365,172.48,172.46,9.41849539]
[1752770974085,41.42777365,172.48,172.45,9.41849539]
[1752770974411,0.67,172.47,172.45,9.41849539]
[1752770974565,34.88,172.46,172.44,26.0]
[1752770974885,34.88,172.46,172.45,9.41849539]
[1752770975284,35.55,172.46,172.44,35.41849539]
[1752770976260,34.88,172.46,172.45,9.41849539]
[1752770977891,34.88,172.46,172.45,10.09849539]
[1752770978980,6.46719788,172.5,172.45,10.09849539]
[1752770979172,34.84,172.49,172.47,9.41849539]
[1752770979373,5.79686597,172.51,172.48,9.41849539]
[1752770979591,34.82,172.5,172.48,9.41849539]
[1752770979769,34.82,172.5,172.45,6.47873265]
[1752770979970,34.82,172.5,172.48,9.41849539]
[1752770980170,35.49,172.5,172.48,9.41849539]
[1752770980586,41.28714018,172.5,172.48,9.41849539]
[1752770981797,9.44849539,172.53,172.46,6.47824879]
[1752770982093,41.26644539,172.52,172.5,9.41849539]
[1752770982466,41.26644539,172.52,172.46,6.47824879]
[1752770982695,35.47,172.52,172.5,9.41849539]
[1752770983101,34.8,172.52,172.51,9.41849539]
[1752770983296,35.47,172.52,172.51,9.41849539]
[1752770984287,35.47,172.52,172.48,7.2779]
[1752770984490,35.47,172.52,172.51,9.41849539]
[1752770984797,34.97,172.52,172.51,9.41849539]
[1752770985676,34.3,172.52,172.51,9.41849539]
[1752770986008,34.76,172.52,172.51,9.41849539]
[1752770986224,35.43,172.52,172.5,9.41849539]
[1752770986785,0.03,172.53,172.51,10.09849539]
[1752770986985,0.03,172.53,172.52,36.09849539]
[1752770987711,0.03,172.53,172.52,26.68]
[1752770987922,0.03,172.53,172.52,35.41849539]
[1752770988278,0.03,172.53,172.52,36.09849539]
[1752770988789,0.03,172.53,172.52,41.89492478]
[1752770989179,0.03,172.53,172.52,42.47456771]
[1752770989513,0.03,172.53,172.52,59.25925168]
[1752770990600,34.72,172.57,172.56,26.0]
[1752770990804,34.72,172.57,172.56,36.09849539]
[1752770991308,34.73,172.6,172.57,26.0]
[1752770991477,41.19379413,172.6,172.58,9.41849539]
[1752770991980,34.73,172.6,172.59,9.41849539]
[1752770992402,35.4,172.6,172.57,26.0]
[1752770992603,0.67,172.59,172.54,6.193]
[1752770992804,0.67,172.59,172.55,9.41849539]
[1752770993006,10.08849539,172.59,172.54,15.61149539]
[1752770993224,0.67,172.58,172.55,9.41849539]
[1752770993431,35.35,172.57,172.54,6.193]
[1752770993611,0.67,172.56,172.54,15.61149539]
[1752770993814,0.67,172.55,172.53,35.41849539]
[1752770994020,34.66,172.54,172.53,26.0]
[1752770994735,34.66,172.54,172.53,35.41849539]
[1752770995710,40.4557575,172.54,172.53,26.0]
[1752770995906,34.66,172.54,172.53,35.41849539]
[1752770996407,40.4557575,172.54,172.53,26.0]
[1752770996606,34.66,172.54,172.53,35.41849539]
[1752770997404,40.4557575,172.54,172.53,26.0]
[1752770997641,41.1757575,172.54,172.49,6.9903]
[1752770997814,0.72,172.53,172.52,26.0]
[1752770998400,6.51609343,172.53,172.52,26.0]
[1752770998841,6.51609343,172.53,172.51,9.41849539]
[1752770999052,0.72,172.52,172.48,9.41849539]
[1752770999208,34.62,172.51,172.48,9.41849539]
[1752770999511,34.62,172.51,172.5,26.0]
[1752771000106,34.62,172.51,172.48,35.41849539]
[1752771000321,35.34,172.51,172.47,9.41849539]
[1752771000605,40.41699063,172.51,172.49,9.41849539]
[1752771001135,0.72,172.56,172.5,10.07849539]
[1752771001313,34.6,172.55,172.54,9.41849539]
[1752771002613,40.39542161,172.55,172.54,9.41849539]
[1752771002817,40.39542161,172.55,172.53,9.41849539]
[1752771003016,10.13849539,172.54,172.5,26.0]
[1752771003220,0.72,172.53,172.5,35.41849539]
[1752771003424,34.58,172.52,172.5,26.66]
[1752771003624,34.58,172.52,172.51,9.41849539]
[1752771004037,6.51407845,172.59,172.51,10.07849539]
[1752771004239,0.72,172.63,172.58,9.41849539]
[1752771004535,34.56,172.65,172.59,25.00159078]
[1752771004740,40.35235785,172.65,172.59,32.98496923]
[1752771005044,34.56,172.65,172.62,26.0]
[1752771005248,34.56,172.68,172.67,26.0]
[1752771005422,34.56,172.68,172.67,35.41849539]
[1752771005815,0.03,172.69,172.67,35.41849539]
[1752771006030,0.03,172.69,172.68,9.41849539]
[1752771006232,0.03,172.69,172.68,10.07849539]
[1752771006435,0.03,172.69,172.68,9.41849539]
[1752771006642,0.03,172.69,172.68,10.07849539]
[1752771007014,0.03,172.69,172.68,9.41849539]
[1752771008017,35.29,172.69,172.65,26.0]
[1752771008239,35.29,172.69,172.68,9.41849539]
[1752771008443,34.57,172.69,172.68,9.41849539]
[1752771008919,40.36072326,172.69,172.68,9.41849539]
[1752771009114,34.57,172.69,172.68,9.41849539]
[1752771009523,0.03,172.69,172.68,16.64069539]
[1752771010336,0.03,172.69,172.68,35.50538522]
[1752771010726,0.03,172.69,172.68,41.29644382]
[1752771010911,0.03,172.7,172.69,16.78468397]
[1752771011111,0.03,172.7,172.69,36.28167475]
[1752771011528,0.1,172.71,172.69,36.28167475]
[1752771011730,0.1,172.71,172.7,40.99442253]
[1752771012249,0.1,172.71,172.7,36.86071354]
[1752771012431,0.1,172.71,172.7,40.99535584]
[1752771012822,0.1,172.71,172.7,46.78574379]
[1752771013417,0.1,172.71,172.7,20.58256443]
[1752771013622,0.1,172.71,172.7,37.3672484]
[1752771014046,0.1,172.71,172.7,72.78574379]
[1752771014257,0.1,172.71,172.7,68.65110149]
[1752771014556,0.1,172.71,172.7,46.7742402]
[1752771015131,0.1,172.71,172.7,46.77346159]
[1752771015547,0.1,172.71,172.7,42.65110149]
[1752771016445,0.1,172.71,172.7,46.76788857]
[1752771016650,0.1,172.71,172.7,42.65110149]
[1752771017925,0.03,172.76,172.73,26.0]
[1752771018141,0.03,172.76,172.75,9.41849539]
[1752771018635,0.03,172.76,172.73,26.0]
[1752771018822,0.03,172.76,172.75,9.41849539]
[1752771020330,0.03,172.76,172.75,10.07849539]
[1752771020544,0.03,172.76,172.75,15.8672074]
[1752771020936,0.03,172.76,172.75,32.65189137]
[1752771021339,0.03,172.76,172.75,33.23076257]
[1752771021660,0.03,172.77,172.76,16.78468397]
[1752771021831,0.03,172.77,172.76,30.31040241]
[1752771022154,0.03,172.77,172.76,30.97040241]
[1752771022350,0.03,172.77,172.76,36.75877934]
[1752771022531,0.1,172.8,172.79,42.78468397]
[1752771022731,0.1,172.8,172.79,52.20317936]
[1752771023265,0.1,172.8,172.79,52.86317936]
[1752771024362,0.72,172.88,172.79,82.53747658]
[1752771024661,6.50439658,172.88,172.82,26.0]
[1752771024835,0.72,172.87,172.86,9.41849539]
[1752771025237,0.72,172.89,172.86,9.41849539]
[1752771025433,0.72,172.89,172.88,9.41849539]
[1752771025652,34.34,172.9,172.88,9.41849539]
[1752771025940,40.12368999,172.9,172.89,9.41849539]
[1752771026131,34.34,172.9,172.89,9.41849539]
[1752771027053,0.72,172.94,172.89,9.41849539]
[1752771027363,5.78239456,172.94,172.93,9.41849539]
[1752771027556,5.78239456,172.94,172.92,9.41849539]
[1752771027940,0.68,172.93,172.92,9.41849539]
[1752771028863,6.46268663,172.93,172.92,9.41849539]
[1752771029246,34.98,172.95,172.88,16.78468397]
[1752771029458,34.98,172.95,172.93,9.41849539]
[1752771029746,0.68,172.94,172.92,9.41849539]
[1752771029959,34.3,172.95,172.92,9.41849539]
[1752771030160,0.68,172.93,172.88,16.78468397]
[1752771030540,0.68,172.93,172.88,23.27903991]
[1752771031260,6.46269921,172.93,172.92,9.41849539]
[1752771031565,5.78269921,172.93,172.88,16.78468397]
[1752771031738,5.78269921,172.93,172.92,9.41849539]
[1752771032138,5.78269921,172.93,172.85,0.5785363]
[1752771032139,6.46269921,172.93,172.89,9.41849539]
[1752771032347,6.46269921,172.93,172.91,9.41849539]
[1752771032348,0.68,172.92,172.91,9.41849539]
[1752771032548,5.78269921,172.93,172.91,9.41849539]
[1752771032848,34.24,172.93,172.92,9.41849539]
[1752771033448,34.92,172.93,172.92,9.41849539]
[1752771034563,34.24,172.93,172.92,9.41849539]
[1752771036182,34.24,172.93,172.89,26.71]
[1752771036352,34.24,172.93,172.92,9.41849539]
[1752771038077,34.24,172.93,172.89,26.71]
[1752771038289,40.70268663,172.93,172.92,9.41849539]
[1752771038673,34.24,172.93,172.92,9.41849539]
[1752771039594,0.03,172.94,172.92,15.91141225]
[1752771039800,0.03,172.94,172.93,9.41849539]
[1752771040183,6.49256083,172.94,172.89,26.0]
[1752771040382,34.84,172.93,172.92,9.41849539]
[1752771040884,40.62268663,172.93,172.92,9.41849539]
[1752771041084,40.62268663,172.93,172.91,6.38222301]
[1752771041470,0.68,172.92,172.84,8.6799]
[1752771041772,6.38222301,172.89,172.84,6.38222301]
[1752771042040,34.82,172.88,172.84,6.38222301]
[1752771042207,34.82,172.88,172.86,6.38222301]
[1752771042392,5.78268663,172.93,172.87,7.09222301]
[1752771042569,34.14,172.92,172.91,6.38222301]
[1752771042875,0.03,172.94,172.91,7.09222301]
[1752771043080,0.03,172.94,172.93,6.38222301]
[1752771044101,0.03,172.94,172.92,26.0]
[1752771044575,0.03,172.94,172.93,6.38222301]
[1752771049175,0.03,172.94,172.92,26.0]
[1752771049405,0.03,172.94,172.93,6.38222301]
[1752771049989,0.03,172.94,172.92,26.0]
[1752771050210,0.71,172.94,172.93,6.38222301]
[1752771050388,0.71,172.94,172.92,26.0]
[1752771050708,0.68,172.93,172.85,8.7989]
[1752771050881,39.86328394,172.92,172.9,6.38222301]
[1752771051078,0.68,172.91,172.9,6.38222301]
[1752771051477,0.68,172.91,172.88,6.38222301]
[1752771051678,0.68,172.91,172.87,6.38222301]
[1752771052110,0.68,172.9,172.87,6.38222301]
[1752771052295,34.06,172.89,172.85,8.0889]
[1752771052504,34.74,172.89,172.87,6.38222301]
[1752771053012,34.74,172.89,172.85,8.0889]
[1752771053197,34.74,172.89,172.87,6.38222301]
[1752771053508,34.06,172.89,172.88,6.38222301]
[1752771054079,34.06,172.89,172.85,8.0889]
[1752771054080,40.52402452,172.89,172.87,6.38222301]
[1752771054512,0.68,172.88,172.87,6.38222301]
[1752771055902,6.46442558,172.88,172.86,6.38222301]
[1752771056109,0.68,172.88,172.86,6.38222301]
[1752771057217,34.06,172.89,172.87,6.38222301]
[1752771057394,34.06,172.89,172.88,6.38222301]
[1752771059104,34.78,172.89,172.88,6.38222301]
[1752771059315,34.78,172.89,172.85,5.78524138]
[1752771059490,34.78,172.89,172.88,6.38222301]
[1752771059491,34.06,172.89,172.88,6.38222301]
[1752771059695,34.06,172.89,172.88,10.53328929]
[1752771059912,34.06,172.89,172.88,6.38222301]
[1752771061492,33.98,172.91,172.88,7.05222301]
[1752771061798,33.98,172.91,172.9,6.38222301]
[1752771062000,33.98,172.91,172.87,5.78460548]
[1752771062197,33.98,172.91,172.9,6.38222301]
[1752771063415,46.86564979,172.91,172.83,31.09133669]
[1752771063623,5.78402452,172.89,172.86,6.38222301]
[1752771063801,34.68,172.88,172.85,6.38222301]
[1752771064004,34.68,172.88,172.84,26.0]
[1752771064216,34.68,172.88,172.86,6.38222301]
[1752771064401,0.72,172.87,172.86,6.38222301]
[1752771064904,33.96,172.88,172.86,6.38222301]
[1752771065114,33.96,172.88,172.84,31.78562075]
[1752771065308,33.96,172.88,172.87,6.38222301]
[1752771065998,40.46435909,172.88,172.84,26.0]
[1752771066196,0.72,172.87,172.86,6.38222301]
[1752771066732,33.96,172.88,172.86,6.38222301]
[1752771066912,33.96,172.88,172.87,6.38222301]
[1752771069328,0.72,172.93,172.89,6.38222301]
[1752771069505,33.9,172.92,172.87,43.45468397]
[1752771069821,33.9,172.92,172.91,6.38222301]
[1752771071028,40.40308987,172.92,172.88,6.0105]
[1752771071330,40.40308987,172.92,172.91,6.38222301]
[1752771071626,40.40308987,172.92,172.88,6.0105]
[1752771071802,39.68308987,172.92,172.91,6.38222301]
[1752771072231,40.40308987,172.92,172.91,6.38222301]
[1752771072434,34.62,172.92,172.91,6.38222301]
[1752771074317,40.40308686,172.92,172.91,6.38222301]
[1752771075226,40.40308686,172.92,172.87,26.0]
[1752771075422,0.72,172.91,172.87,6.38222301]
[1752771075621,40.24222301,172.9,172.86,6.38222301]
[1752771075801,5.78308686,172.92,172.87,6.38222301]
[1752771076001,5.78308686,172.92,172.9,6.38222301]
[1752771076002,34.58,172.91,172.9,6.38222301]
[1752771076936,34.58,172.91,172.86,6.45486773]
[1752771077141,34.58,172.91,172.9,6.38222301]
[1752771078144,33.86,172.91,172.88,5.78431956]
[1752771078342,33.86,172.91,172.9,6.38222301]
[1752771078931,33.86,172.91,172.86,0.67]
[1752771079113,33.86,172.91,172.9,6.38222301]
[1752771079735,33.82,172.91,172.9,6.38222301]
[1752771082044,34.54,172.91,172.9,6.38222301]
[1752771082236,40.3233555,172.91,172.9,6.38222301]
[1752771082450,40.3233555,172.91,172.86,6.38222301]
[1752771082451,46.70557851,172.91,172.86,6.38222301]
[1752771082609,46.70557851,172.91,172.84,6.38222301]
[1752771082610,6.38222301,172.89,172.84,6.38222301]
[1752771082812,54.74964425,172.91,172.83,6.38222301]
[1752771082813,40.90222301,172.88,172.83,6.38222301]
[1752771083117,33.78,172.87,172.83,6.38222301]
[1752771083324,34.5,172.87,172.83,6.38222301]
[1752771083650,6.50502834,172.86,172.83,6.38222301]
[1752771083869,34.5,172.85,172.83,6.38222301]
[1752771084018,0.72,172.84,172.8,0.06]
[1752771084218,33.78,172.83,172.8,0.06]
[1752771084538,0.72,172.82,172.8,0.06]
[1752771084840,33.78,172.81,172.8,0.06]
[1752771085352,20.2475992,172.86,172.8,6.44222301]
[1752771085353,0.72,172.85,172.8,6.44222301]
[1752771085550,33.78,172.84,172.83,6.38222301]
[1752771086119,39.56569775,172.84,172.83,6.38222301]
[1752771086845,33.78,172.84,172.83,6.38222301]
[1752771087026,33.76,172.84,172.83,6.38222301]
[1752771088318,34.47,172.84,172.8,5.847004]
[1752771088523,33.76,172.84,172.83,6.38222301]
[1752771089032,33.76,172.84,172.8,6.547004]
[1752771089248,33.76,172.84,172.83,6.38222301]
[1752771089434,33.76,172.84,172.8,12.80793071]
[1752771089739,33.76,172.84,172.83,6.38222301]
[1752771090124,33.76,172.84,172.82,6.3286]
[1752771090342,33.76,172.84,172.83,6.38222301]
[1752771090862,34.47,172.84,172.83,6.38222301]
[1752771091028,40.25572663,172.84,172.8,0.06]
[1752771091347,0.71,172.83,172.8,0.06]
[1752771091559,0.71,172.83,172.81,6.38222301]
[1752771091730,6.49609269,172.83,172.81,6.38222301]
[1752771091934,0.71,172.82,172.81,6.38222301]
[1752771092444,0.71,172.82,172.8,0.06]
[1752771092758,0.71,172.84,172.81,6.38222301]
[1752771092928,34.43,172.83,172.81,6.38222301]
[1752771094258,40.21604697,172.83,172.81,6.38222301]
[1752771094951,0.71,172.82,172.8,0.06]
[1752771095149,0.71,172.82,172.8,6.44222301]
[1752771096040,39.50604697,172.83,172.81,6.38222301]
[1752771096333,40.21604697,172.83,172.8,0.06]
[1752771096534,40.21604697,172.83,172.81,6.38222301]
[1752771096759,39.50604697,172.83,172.8,0.06]
[1752771096965,0.71,172.82,172.81,6.38222301]
[1752771097831,0.71,172.82,172.8,0.06]
[1752771098058,33.68,172.81,172.8,6.44222301]
[1752771098446,34.39,172.81,172.8,0.06]
[1752771099959,40.17670215,172.81,172.8,0.06]
[1752771100975,46.55892516,172.81,172.8,0.06]
[1752771106777,40.17670215,172.81,172.8,0.06]
[1752771107094,5.78670215,172.81,172.8,0.06]
[1752771107371,33.6,172.81,172.8,6.44222301]
[1752771107676,6.49511877,172.86,172.8,8.69732301]
[1752771107887,33.6,172.85,172.81,7.2562]
[1752771108049,33.6,172.85,172.84,6.38222301]
[1752771108860,33.6,172.85,172.84,0.7]
[1752771109170,33.6,172.85,172.84,6.38222301]
[1752771109863,34.31,172.85,172.81,6.5562]
[1752771110174,0.71,172.84,172.83,6.38222301]
[1752771110870,39.38536303,172.85,172.83,6.38222301]
[1752771111072,40.09536303,172.85,172.83,6.38222301]
[1752771111273,0.71,172.84,172.81,6.5562]
[1752771111462,34.27,172.83,172.82,6.38222301]
[1752771113357,33.56,172.83,172.82,6.38222301]
[1752771114182,39.34603251,172.83,172.82,6.38222301]
[1752771115071,33.56,172.83,172.82,6.38222301]
[1752771115776,34.27,172.83,172.82,6.38222301]
[1752771115976,40.05603251,172.83,172.81,6.38222301]
[1752771116175,0.71,172.82,172.8,7.99732301]
[1752771116378,33.52,172.81,172.8,7.99732301]
[1752771116578,33.52,172.81,172.8,6.44222301]
[1752771117259,0.03,172.83,172.8,7.14222301]
[1752771117460,33.53,172.83,172.82,6.38222301]
[1752771119666,34.24,172.83,172.82,6.38222301]
[1752771119866,33.53,172.83,172.8,0.06]
[1752771120090,33.53,172.83,172.82,6.38222301]
[1752771120282,34.24,172.83,172.82,6.38222301]
[1752771120587,40.02603251,172.83,172.8,0.06]
[1752771120770,0.71,172.82,172.8,0.06]
[1752771120975,33.48,172.81,172.8,0.06]
[1752771121172,45.64892516,172.81,172.8,0.06]
[1752771121495,39.97670215,172.81,172.8,0.06]
[1752771121790,60.82568055,172.81,172.73,1.5733]
[1752771121994,6.38222301,172.76,172.73,0.06]
[1752771122175,39.84222301,172.75,172.73,0.06]
[1752771122365,0.71,172.75,172.73,6.44222301]
[1752771122690,33.46,172.74,172.73,6.44222301]
[1752771123385,33.46,172.74,172.73,0.06]
[1752771123586,39.24904712,172.74,172.73,0.06]
[1752771123799,39.95904712,172.74,172.73,0.06]
[1752771125080,46.34127013,172.74,172.73,0.06]
[1752771125390,39.95904712,172.74,172.73,0.06]
[1752771125593,46.34127013,172.74,172.73,0.06]
[1752771126297,39.95904712,172.74,172.73,0.06]
[1752771126474,46.34127013,172.74,172.73,0.06]
[1752771127811,16.78468397,172.73,172.65,6.38222301]
[1752771128100,6.38222301,172.7,172.66,6.38222301]
[1752771128312,33.42,172.69,172.66,6.38222301]
[1752771128593,33.42,172.69,172.64,1.5581]
[1752771128796,0.71,172.68,172.66,6.38222301]
[1752771128999,33.42,172.67,172.66,6.38222301]
[1752771129577,34.13,172.67,172.63,12.97962301]
[1752771129794,0.71,172.66,172.63,12.97962301]
[1752771130092,33.42,172.65,172.63,6.44222301]
[1752771130290,0.71,172.67,172.64,6.38222301]
[1752771130599,33.4,172.66,172.64,6.38222301]
[1752771130979,6.5013954,172.67,172.65,6.38222301]
[1752771131180,33.4,172.66,172.64,6.38222301]
[1752771132595,5.7911033,172.68,172.63,0.06]
[1752771132778,33.4,172.67,172.64,6.38222301]
[1752771132975,0.71,172.66,172.63,6.44222301]
[1752771133177,33.4,172.65,172.63,6.44222301]
[1752771133392,0.71,172.64,172.63,0.06]